fUST/lending_fUST_20250318
["ID","MTS","AMOUNT","RATE_DAILY","PERIOD"]
[356321401,1742259047048,-1746.39,8.493e-05,2]
[356321402,1742259047059,-169.9936854,8.493e-05,2]
[356321406,1742259308785,-850.0,0.00013698,15]
[356321476,1742260243663,-150.0,7.956e-05,2]
[356321477,1742260243673,-150.0,7.956e-05,2]
[356321478,1742260243683,-3031.74382359,8e-05,2]
[356321580,1742260391352,-820.0,8e-05,2]
[356321608,1742260651537,-298.77309953,7.397e-05,2]
[356321629,1742261164076,844.16216387,0.00014,30]
[356321655,1742261417963,207.71,0.000139,31]
[356321686,1742261433007,-200.70935687,7.397e-05,2]
[356321688,1742261433017,-2448.25617641,8e-05,2]
[356321690,1742261433027,-4078.01384002,8.119e-05,2]
[356321691,1742261433037,-857.19439389,8.187e-05,2]
[356321693,1742261433046,-433.94180647,8.199e-05,2]
[356321694,1742261433055,-300.0,8.199e-05,2]
[356321695,1742261433064,-41494.08324979,8.2e-05,2]
[356321696,1742261433073,-500.0,8.219e-05,2]
[356321697,1742261433082,-500.0,8.219e-05,2]
[356321698,1742261433091,-500.0,8.219e-05,2]
[356321699,1742261433100,-500.0,8.219e-05,2]
[356321700,1742261433109,-500.0,8.219e-05,2]
[356321701,1742261433119,-339.66306397,8.219e-05,2]
[356321702,1742261433128,-505.17,8.219e-05,2]
[356321703,1742261433137,-500.0,8.219e-05,2]
[356321704,1742261433148,-500.0,8.219e-05,2]
[356321705,1742261433157,-500.0,8.219e-05,2]
[356321706,1742261433167,-500.0,8.219e-05,2]
[356321707,1742261433177,-500.0,8.219e-05,2]
[356321708,1742261433187,-631.13982054,8.219e-05,2]
[356321709,1742261433197,-500.0,8.219e-05,2]
[356321710,1742261433207,-500.0,8.219e-05,2]
[356321711,1742261433218,-500.0,8.219e-05,2]
[356321712,1742261433228,-500.0,8.219e-05,2]
[356321713,1742261433237,-500.0,8.219e-05,2]
[356321714,1742261433248,-500.0,8.219e-05,2]
[356321715,1742261433257,-500.0,8.219e-05,2]
[356321716,1742261433268,-500.0,8.219e-05,2]
[356321717,1742261433277,-500.0,8.219e-05,2]
[356321718,1742261433287,-500.0,8.219e-05,2]
[356321719,1742261433296,-151.0,8.219e-05,2]
[356321720,1742261433306,-151.0,8.219e-05,2]
[356321721,1742261433316,-151.0,8.219e-05,2]
[356321722,1742261433325,-500.0,8.219e-05,2]
[356321723,1742261433335,-151.0,8.219e-05,2]
[356321724,1742261433346,-151.0,8.219e-05,2]
[356321725,1742261433356,-217.68479,8.219e-05,2]
[356321726,1742261433365,-551.31,8.219e-05,2]
[356321727,1742261433375,-500.0,8.219e-05,2]
[356321728,1742261433385,-840.51,8.219e-05,2]
[356321729,1742261433395,-500.0,8.219e-05,2]
[356321730,1742261433405,-500.0,8.219e-05,2]
[356321731,1742261433415,-500.0,8.219e-05,2]
[356321732,1742261433425,-956.16,8.219e-05,2]
[356321733,1742261433435,-500.0,8.219e-05,2]
[356321734,1742261433445,-500.0,8.219e-05,2]
[356321735,1742261433455,-500.0,8.219e-05,2]
[356321736,1742261433465,-500.0,8.219e-05,2]
[356321737,1742261433475,-500.0,8.219e-05,2]
[356321738,1742261433484,-500.0,8.219e-05,2]
[356321739,1742261433494,-500.0,8.219e-05,2]
[356321740,1742261433504,-500.0,8.219e-05,2]
[356321741,1742261433513,-500.0,8.219e-05,2]
[356321742,1742261433523,-500.0,8.219e-05,2]
[356321743,1742261433533,-500.0,8.219e-05,2]
[356321744,1742261433543,-500.0,8.219e-05,2]
[356321745,1742261433553,-500.0,8.219e-05,2]
[356321746,1742261433563,-500.0,8.219e-05,2]
[356321747,1742261433573,-500.0,8.219e-05,2]
[356321748,1742261433583,-500.0,8.219e-05,2]
[356321749,1742261433593,-500.0,8.219e-05,2]
[356321750,1742261433603,-767.17,8.219e-05,2]
[356321751,1742261433613,-625.99,8.219e-05,2]
[356321752,1742261433623,-887.55,8.219e-05,2]
[356321753,1742261433632,-500.0,8.219e-05,2]
[356321754,1742261433644,-539.94,8.219e-05,2]
[356321755,1742261433657,-500.0,8.219e-05,2]
[356321756,1742261433667,-500.0,8.219e-05,2]
[356321757,1742261433677,-500.0,8.219e-05,2]
[356321758,1742261433687,-500.0,8.219e-05,2]
[356321759,1742261433697,-500.0,8.219e-05,2]
[356321760,1742261433707,-500.0,8.219e-05,2]
[356321761,1742261433718,-500.0,8.219e-05,2]
[356321762,1742261433730,-500.0,8.219e-05,2]
[356321763,1742261433740,-500.0,8.219e-05,2]
[356321764,1742261433750,-500.0,8.219e-05,2]
[356321765,1742261433759,-500.0,8.219e-05,2]
[356321766,1742261433769,-500.0,8.219e-05,2]
[356321767,1742261433778,-500.0,8.219e-05,2]
[356321768,1742261433788,-500.0,8.219e-05,2]
[356321769,1742261433797,-500.0,8.219e-05,2]
[356321770,1742261433807,-500.0,8.219e-05,2]
[356321771,1742261433817,-500.0,8.219e-05,2]
[356321772,1742261433827,-500.0,8.219e-05,2]
[356321773,1742261433836,-500.0,8.219e-05,2]
[356321774,1742261433846,-500.0,8.219e-05,2]
[356321775,1742261433856,-500.0,8.219e-05,2]
[356321776,1742261433866,-500.0,8.219e-05,2]
[356321777,1742261433875,-500.0,8.219e-05,2]
[356321778,1742261433885,-500.0,8.219e-05,2]
[356321779,1742261433895,-500.0,8.219e-05,2]
[356321780,1742261433904,-574.7,8.219e-05,2]
[356321781,1742261433914,-500.0,8.219e-05,2]
[356321782,1742261433924,-500.0,8.219e-05,2]
[356321783,1742261433933,-500.0,8.219e-05,2]
[356321784,1742261433943,-500.0,8.219e-05,2]
[356321785,1742261433953,-500.0,8.219e-05,2]
[356321786,1742261433963,-495.3564515,8.219e-05,2]
[356321787,1742261433972,-500.0,8.219e-05,2]
[356321788,1742261433982,-500.0,8.219e-05,2]
[356321789,1742261433992,-500.0,8.219e-05,2]
[356321790,1742261434003,-500.0,8.219e-05,2]
[356321791,1742261434013,-500.0,8.219e-05,2]
[356321792,1742261434022,-649.7,8.219e-05,2]
[356321793,1742261434032,-205.66363032,8.219e-05,2]
[356321794,1742261434042,-500.0,8.219e-05,2]
[356321795,1742261434051,-500.0,8.219e-05,2]
[356321796,1742261434061,-500.0,8.219e-05,2]
[356321797,1742261434071,-500.0,8.219e-05,2]
[356321798,1742261434081,-500.0,8.219e-05,2]
[356321799,1742261434091,-3329.32,8.219e-05,2]
[356321800,1742261434100,-500.0,8.219e-05,2]
[356321801,1742261434110,-500.0,8.219e-05,2]
[356321802,1742261434120,-732.23,8.219e-05,2]
[356321803,1742261434130,-1813.92,8.219e-05,2]
[356321804,1742261434139,-982.0,8.219e-05,2]
[356321805,1742261434149,-500.0,8.219e-05,2]
[356321806,1742261434160,-500.0,8.219e-05,2]
[356321807,1742261434169,-1034.17,8.219e-05,2]
[356321808,1742261434179,-500.0,8.219e-05,2]
[356321809,1742261434189,-500.0,8.219e-05,2]
[356321810,1742261434199,-500.0,8.219e-05,2]
[356321811,1742261434210,-99162.12,8.219e-05,2]
[356321812,1742261434220,-751.81,8.219e-05,2]
[356321813,1742261434230,-500.0,8.219e-05,2]
[356321814,1742261434240,-500.0,8.219e-05,2]
[356321815,1742261434250,-523.72482266,8.219e-05,2]
[356321816,1742261434260,-1169.21,8.219e-05,2]
[356321817,1742261434270,-500.0,8.219e-05,2]
[356321818,1742261434280,-500.0,8.219e-05,2]
[356321819,1742261434290,-500.0,8.219e-05,2]
[356321820,1742261434300,-2442.62,8.219e-05,2]
[356321821,1742261434310,-3266.69,8.219e-05,2]
[356321822,1742261434320,-500.0,8.219e-05,2]
[356321823,1742261434330,-695.41,8.219e-05,2]
[356321824,1742261434340,-5661.56,8.219e-05,2]
[356321825,1742261434349,-500.0,8.219e-05,2]
[356321826,1742261434359,-5830.78,8.219e-05,2]
[356321827,1742261434369,-500.0,8.219e-05,2]
[356321828,1742261434379,-500.0,8.219e-05,2]
[356321829,1742261434388,-506.46,8.219e-05,2]
[356321830,1742261434398,-2726.94,8.219e-05,2]
[356321831,1742261434407,-500.0,8.219e-05,2]
[356321832,1742261434417,-500.0,8.219e-05,2]
[356321833,1742261434427,-500.0,8.219e-05,2]
[356321834,1742261434436,-1185.27,8.219e-05,2]
[356321835,1742261434446,-500.0,8.219e-05,2]
[356321836,1742261434459,-500.0,8.219e-05,2]
[356321837,1742261434470,-1483.23,8.219e-05,2]
[356321838,1742261434481,-500.0,8.219e-05,2]
[356321839,1742261434494,-8269.53,8.219e-05,2]
[356321840,1742261434506,-1058.5,8.219e-05,2]
[356321841,1742261434519,-500.0,8.219e-05,2]
[356321842,1742261434532,-500.0,8.219e-05,2]
[356321843,1742261434543,-1012.34,8.219e-05,2]
[356321844,1742261434552,-1509.2,8.219e-05,2]
[356321845,1742261434562,-7294.58,8.219e-05,2]
[356321846,1742261434575,-500.0,8.219e-05,2]
[356321847,1742261434586,-500.0,8.219e-05,2]
[356321848,1742261434603,-519.54,8.219e-05,2]
[356321849,1742261434613,-500.0,8.219e-05,2]
[356321850,1742261434622,-500.0,8.219e-05,2]
[356321851,1742261434632,-500.0,8.219e-05,2]
[356321852,1742261434643,-903.71,8.219e-05,2]
[356321853,1742261434654,-500.0,8.219e-05,2]
[356321854,1742261434663,-8449.46,8.219e-05,2]
[356321855,1742261434673,-1281.15,8.219e-05,2]
[356321856,1742261434683,-500.0,8.219e-05,2]
[356321857,1742261434693,-500.0,8.219e-05,2]
[356321858,1742261434703,-854.47,8.219e-05,2]
[356321859,1742261434715,-986.83,8.219e-05,2]
[356321860,1742261434725,-500.0,8.219e-05,2]
[356321861,1742261434735,-1023.83005429,8.219e-05,2]
[356321862,1742261434744,-732.3,8.219e-05,2]
[356321863,1742261434755,-500.0,8.219e-05,2]
[356321864,1742261434765,-848.18,8.219e-05,2]
[356321865,1742261434775,-500.0,8.219e-05,2]
[356321866,1742261434785,-500.0,8.219e-05,2]
[356321867,1742261434794,-500.0,8.219e-05,2]
[356321868,1742261434804,-260.6,8.219e-05,2]
[356321869,1742261434814,-1032.93,8.219e-05,2]
[356321870,1742261435020,-564.65,8.219e-05,2]
[356321871,1742261435030,-500.0,8.219e-05,2]
[356321872,1742261435040,-6439.17,8.219e-05,2]
[356321873,1742261435049,-1711.67,8.219e-05,2]
[356321874,1742261435059,-562.71,8.219e-05,2]
[356321875,1742261435068,-2200.66,8.219e-05,2]
[356321876,1742261435077,-500.0,8.219e-05,2]
[356321877,1742261435087,-3934.32,8.219e-05,2]
[356321878,1742261435097,-714.68,8.219e-05,2]
[356321879,1742261435107,-2184.32,8.219e-05,2]
[356321880,1742261435117,-500.0,8.219e-05,2]
[356321881,1742261435127,-4317.17,8.219e-05,2]
[356321882,1742261435137,-1815.06,8.219e-05,2]
[356321883,1742261435146,-515.60481624,8.219e-05,2]
[356321884,1742261435156,-500.0,8.219e-05,2]
[356321885,1742261435166,-935.1,8.219e-05,2]
[356321886,1742261435175,-755.46,8.219e-05,2]
[356321887,1742261435184,-1174.66,8.219e-05,2]
[356321888,1742261435194,-556.58,8.219e-05,2]
[356321889,1742261435204,-500.0,8.219e-05,2]
[356321890,1742261435215,-500.0,8.219e-05,2]
[356321891,1742261435224,-502.74959478,8.219e-05,2]
[356321892,1742261435234,-500.0,8.219e-05,2]
[356321893,1742261435243,-2098.62,8.219e-05,2]
[356321894,1742261435253,-500.0,8.219e-05,2]
[356321895,1742261435262,-930.08742611,8.219e-05,2]
[356321896,1742261435272,-257.2201417,8.238e-05,2]
[356321897,1742261435281,-205.66363029,8.288e-05,2]
[356321898,1742261435291,-205.66363029,8.356e-05,2]
[356321899,1742261435300,-205.66363029,8.425e-05,2]
[356321900,1742261435309,-1000.0,8.48e-05,2]
[356321901,1742261435319,-835.0581561,8.483e-05,2]
[356321902,1742261435330,-200.0,8.49e-05,2]
[356321903,1742261435339,-164.24209219,8.492e-05,2]
[356321904,1742261435348,-380.0,8.493e-05,2]
[356321905,1742261435358,-500.0,8.493e-05,2]
[356321906,1742261435367,-173.55,8.493e-05,2]
[356321907,1742261435376,-514.19114158,8.493e-05,2]
[356321908,1742261435386,-500.0,8.493e-05,2]
[356321909,1742261435395,-596.1,8.493e-05,2]
[356321910,1742261435404,-500.0,8.493e-05,2]
[356321911,1742261435414,-500.0,8.493e-05,2]
[356321912,1742261435423,-500.0,8.493e-05,2]
[356321913,1742261435432,-500.0,8.493e-05,2]
[356321914,1742261435441,-500.0,8.493e-05,2]
[356321915,1742261435450,-500.0,8.493e-05,2]
[356321916,1742261435460,-500.0,8.493e-05,2]
[356321917,1742261435469,-151.0,8.493e-05,2]
[356321918,1742261435478,-151.0,8.493e-05,2]
[356321919,1742261435487,-151.0,8.493e-05,2]
[356321920,1742261435496,-151.0,8.493e-05,2]
[356321921,1742261435505,-151.0,8.493e-05,2]
[356321922,1742261435514,-551.31,8.493e-05,2]
[356321923,1742261435523,-500.0,8.493e-05,2]
[356321924,1742261435532,-840.51,8.493e-05,2]
[356321925,1742261435541,-956.16,8.493e-05,2]
[356321926,1742261435551,-500.0,8.493e-05,2]
[356321927,1742261435560,-500.0,8.493e-05,2]
[356321928,1742261435569,-500.0,8.493e-05,2]
[356321929,1742261435579,-500.0,8.493e-05,2]
[356321930,1742261435588,-500.0,8.493e-05,2]
[356321931,1742261435598,-500.0,8.493e-05,2]
[356321932,1742261435607,-500.0,8.493e-05,2]
[356321933,1742261435616,-500.0,8.493e-05,2]
[356321934,1742261435626,-500.0,8.493e-05,2]
[356321935,1742261435635,-500.0,8.493e-05,2]
[356321936,1742261435646,-767.17,8.493e-05,2]
[356321937,1742261435655,-625.99,8.493e-05,2]
[356321938,1742261435664,-887.55,8.493e-05,2]
[356321939,1742261435674,-539.94,8.493e-05,2]
[356321940,1742261435684,-500.0,8.493e-05,2]
[356321941,1742261435693,-500.0,8.493e-05,2]
[356321942,1742261435703,-500.0,8.493e-05,2]
[356321943,1742261435715,-500.0,8.493e-05,2]
[356321944,1742261435727,-500.0,8.493e-05,2]
[356321945,1742261435737,-500.0,8.493e-05,2]
[356321946,1742261435746,-500.0,8.493e-05,2]
[356321947,1742261435755,-500.0,8.493e-05,2]
[356321948,1742261435765,-500.0,8.493e-05,2]
[356321949,1742261435774,-500.0,8.493e-05,2]
[356321950,1742261435783,-500.0,8.493e-05,2]
[356321951,1742261435793,-500.0,8.493e-05,2]
[356321952,1742261435802,-500.0,8.493e-05,2]
[356321953,1742261435812,-500.0,8.493e-05,2]
[356321954,1742261435822,-574.7,8.493e-05,2]
[356321955,1742261435832,-500.0,8.493e-05,2]
[356321956,1742261435841,-500.0,8.493e-05,2]
[356321957,1742261435850,-500.0,8.493e-05,2]
[356321958,1742261435859,-500.0,8.493e-05,2]
[356321959,1742261435868,-649.7,8.493e-05,2]
[356321960,1742261435879,-205.66363029,8.493e-05,2]
[356321961,1742261435888,-500.0,8.493e-05,2]
[356321962,1742261435898,-500.0,8.493e-05,2]
[356321963,1742261435908,-500.0,8.493e-05,2]
[356321964,1742261435917,-3329.32,8.493e-05,2]
[356321965,1742261435926,-500.0,8.493e-05,2]
[356321966,1742261435935,-732.23,8.493e-05,2]
[356321967,1742261435945,-1813.92,8.493e-05,2]
[356321968,1742261435954,-982.0,8.493e-05,2]
[356321969,1742261435964,-500.0,8.493e-05,2]
[356321970,1742261435974,-1034.17,8.493e-05,2]
[356321971,1742261435983,-500.0,8.493e-05,2]
[356321972,1742261435992,-305.42,8.493e-05,2]
[356321973,1742261436001,-500.0,8.493e-05,2]
[356321974,1742261436011,-99162.12,8.493e-05,2]
[356321975,1742261436020,-751.81,8.493e-05,2]
[356321976,1742261436030,-1169.21,8.493e-05,2]
[356321977,1742261436040,-500.0,8.493e-05,2]
[356321978,1742261436049,-500.0,8.493e-05,2]
[356321979,1742261436059,-2442.62,8.493e-05,2]
[356321980,1742261436068,-3266.69,8.493e-05,2]
[356321981,1742261436078,-500.0,8.493e-05,2]
[356321982,1742261436087,-695.41,8.493e-05,2]
[356321983,1742261436096,-5661.56,8.493e-05,2]
[356321984,1742261436106,-500.0,8.493e-05,2]
[356321985,1742261436115,-5830.78,8.493e-05,2]
[356321986,1742261436124,-500.0,8.493e-05,2]
[356321987,1742261436133,-500.0,8.493e-05,2]
[356321988,1742261436142,-529.7,8.493e-05,2]
[356321989,1742261436152,-500.0,8.493e-05,2]
[356321990,1742261436161,-506.46,8.493e-05,2]
[356321991,1742261436171,-2726.94,8.493e-05,2]
[356321992,1742261436181,-428.54,8.493e-05,2]
[356321993,1742261436190,-500.0,8.493e-05,2]
[356321994,1742261436200,-1185.27,8.493e-05,2]
[356321995,1742261436209,-500.0,8.493e-05,2]
[356321996,1742261436219,-500.0,8.493e-05,2]
[356321997,1742261436228,-1483.23,8.493e-05,2]
[356321998,1742261436238,-500.0,8.493e-05,2]
[356321999,1742261436247,-8269.53,8.493e-05,2]
[356322000,1742261436257,-1058.5,8.493e-05,2]
[356322001,1742261436267,-500.0,8.493e-05,2]
[356322002,1742261436277,-500.0,8.493e-05,2]
[356322003,1742261436286,-1012.34,8.493e-05,2]
[356322004,1742261436296,-1509.2,8.493e-05,2]
[356322005,1742261436306,-7294.58,8.493e-05,2]
[356322006,1742261436315,-500.0,8.493e-05,2]
[356322007,1742261436325,-519.54,8.493e-05,2]
[356322008,1742261436334,-500.0,8.493e-05,2]
[356322009,1742261436343,-500.0,8.493e-05,2]
[356322010,1742261436353,-903.71,8.493e-05,2]
[356322011,1742261436363,-500.0,8.493e-05,2]
[356322012,1742261436372,-8449.46,8.493e-05,2]
[356322013,1742261436381,-1281.15,8.493e-05,2]
[356322014,1742261436391,-607.66,8.493e-05,2]
[356322015,1742261436400,-500.0,8.493e-05,2]
[356322016,1742261436410,-854.47,8.493e-05,2]
[356322017,1742261436419,-986.83,8.493e-05,2]
[356322018,1742261436428,-732.3,8.493e-05,2]
[356322019,1742261436438,-500.0,8.493e-05,2]
[356322020,1742261436447,-848.18,8.493e-05,2]
[356322021,1742261436457,-1032.93,8.493e-05,2]
[356322022,1742261436467,-564.65,8.493e-05,2]
[356322023,1742261436476,-500.0,8.493e-05,2]
[356322024,1742261436486,-6439.17,8.493e-05,2]
[356322025,1742261436495,-1711.67,8.493e-05,2]
[356322026,1742261436504,-562.71,8.493e-05,2]
[356322027,1742261436514,-2200.66,8.493e-05,2]
[356322028,1742261436523,-500.0,8.493e-05,2]
[356322029,1742261436532,-3934.32,8.493e-05,2]
[356322030,1742261436542,-2184.32,8.493e-05,2]
[356322031,1742261436551,-500.0,8.493e-05,2]
[356322032,1742261436561,-714.68,8.493e-05,2]
[356322033,1742261436570,-4317.17,8.493e-05,2]
[356322034,1742261436580,-1815.06,8.493e-05,2]
[356322035,1742261436589,-500.0,8.493e-05,2]
[356322036,1742261436598,-935.1,8.493e-05,2]
[356322037,1742261436608,-755.46,8.493e-05,2]
[356322038,1742261436617,-1174.66,8.493e-05,2]
[356322039,1742261436627,-556.58,8.493e-05,2]
[356322040,1742261436637,-500.0,8.493e-05,2]
[356322041,1742261436650,-500.0,8.493e-05,2]
[356322042,1742261436659,-500.0,8.493e-05,2]
[356322043,1742261436668,-2098.62,8.493e-05,2]
[356322044,1742261436678,-500.0,8.493e-05,2]
[356322045,1742261436687,-500.0,8.52e-05,2]
[356322046,1742261436697,-500.0,8.52e-05,2]
[356322047,1742261436706,-500.0,8.52e-05,2]
[356322048,1742261436717,-500.0,8.548e-05,2]
[356322049,1742261436726,-500.0,8.548e-05,2]
[356322050,1742261436735,-500.0,8.548e-05,2]
[356322051,1742261436745,-500.0,8.575e-05,2]
[356322052,1742261436754,-500.0,8.575e-05,2]
[356322053,1742261436764,-484.60971969,8.596e-05,2]
[356322054,1742261436774,-676.11301555,8.603e-05,2]
[356322055,1742261436783,-500.0,8.603e-05,2]
[356322056,1742261436792,-500.0,8.63e-05,2]
[356322057,1742261436802,-500.0,8.657e-05,2]
[356322058,1742261436811,-3000.0,8.667e-05,2]
[356322059,1742261436820,-500.0,8.685e-05,2]
[356322060,1742261436830,-755.74010045,8.7e-05,2]
[356322061,1742261436839,-848.0,8.712e-05,2]
[356322062,1742261436848,-835.0581561,8.73e-05,2]
[356322063,1742261436858,-500.0,8.767e-05,2]
[356322064,1742261436867,-500.0,8.767e-05,2]
[356322065,1742261436877,-286.12,8.767e-05,2]
[356322066,1742261436886,-296.77,8.767e-05,2]
[356322067,1742261436896,-500.0,8.767e-05,2]
[356322068,1742261436905,-500.0,8.767e-05,2]
[356322069,1742261436915,-500.0,8.767e-05,2]
[356322070,1742261436923,-500.0,8.767e-05,2]
[356322071,1742261436933,-151.0,8.767e-05,2]
[356322072,1742261436943,-151.0,8.767e-05,2]
[356322073,1742261436952,-551.31,8.767e-05,2]
[356322074,1742261436963,-500.0,8.767e-05,2]
[356322075,1742261436972,-840.51,8.767e-05,2]
[356322076,1742261436982,-956.16,8.767e-05,2]
[356322077,1742261436992,-500.0,8.767e-05,2]
[356322078,1742261437002,-500.0,8.767e-05,2]
[356322079,1742261437011,-500.0,8.767e-05,2]
[356322080,1742261437021,-500.0,8.767e-05,2]
[356322081,1742261437031,-500.0,8.767e-05,2]
[356322082,1742261437041,-500.0,8.767e-05,2]
[356322083,1742261437050,-500.0,8.767e-05,2]
[356322084,1742261437060,-467.37,8.767e-05,2]
[356322085,1742261437069,-500.0,8.767e-05,2]
[356322086,1742261437078,-500.0,8.767e-05,2]
[356322087,1742261437088,-767.17,8.767e-05,2]
[356322088,1742261437097,-625.99,8.767e-05,2]
[356322089,1742261437106,-887.55,8.767e-05,2]
[356322090,1742261437115,-539.94,8.767e-05,2]
[356322091,1742261437124,-500.0,8.767e-05,2]
[356322092,1742261437134,-500.0,8.767e-05,2]
[356322093,1742261437143,-500.0,8.767e-05,2]
[356322094,1742261437152,-500.0,8.767e-05,2]
[356322095,1742261437161,-500.0,8.767e-05,2]
[356322096,1742261437171,-500.0,8.767e-05,2]
[356322097,1742261437180,-153.68,8.767e-05,2]
[356322098,1742261437190,-500.0,8.767e-05,2]
[356322099,1742261437201,-500.0,8.767e-05,2]
[356322100,1742261437210,-500.0,8.767e-05,2]
[356322101,1742261437219,-500.0,8.767e-05,2]
[356322102,1742261437228,-450.47418019,8.767e-05,2]
[356322103,1742261437238,-626.13,8.767e-05,2]
[356322104,1742261437247,-574.7,8.767e-05,2]
[356322105,1742261437256,-500.0,8.767e-05,2]
[356322106,1742261437266,-500.0,8.767e-05,2]
[356322107,1742261437275,-500.0,8.767e-05,2]
[356322108,1742261437285,-500.0,8.767e-05,2]
[356322109,1742261437295,-649.7,8.767e-05,2]
[356322110,1742261437304,-500.0,8.767e-05,2]
[356322111,1742261437314,-500.0,8.767e-05,2]
[356322112,1742261437323,-500.0,8.767e-05,2]
[356322113,1742261437333,-3329.32,8.767e-05,2]
[356322114,1742261437342,-500.0,8.767e-05,2]
[356322115,1742261437352,-732.23,8.767e-05,2]
[356322116,1742261437361,-1813.92,8.767e-05,2]
[356322117,1742261437371,-982.0,8.767e-05,2]
[356322118,1742261437380,-500.0,8.767e-05,2]
[356322119,1742261437389,-1034.17,8.767e-05,2]
[356322120,1742261437398,-500.0,8.767e-05,2]
[356322121,1742261437408,-99162.12,8.767e-05,2]
[356322122,1742261437417,-751.81,8.767e-05,2]
[356322123,1742261437427,-1169.21,8.767e-05,2]
[356322124,1742261437436,-500.0,8.767e-05,2]
[356322125,1742261437445,-2442.62,8.767e-05,2]
[356322126,1742261437454,-3266.69,8.767e-05,2]
[356322127,1742261437464,-499.77,8.767e-05,2]
[356322128,1742261437473,-695.41,8.767e-05,2]
[356322129,1742261437483,-5661.56,8.767e-05,2]
[356322130,1742261437492,-500.0,8.767e-05,2]
[356322131,1742261437501,-5830.78,8.767e-05,2]
[356322132,1742261437510,-500.0,8.767e-05,2]
[356322133,1742261437519,-506.46,8.767e-05,2]
[356322134,1742261437528,-2726.94,8.767e-05,2]
[356322135,1742261437537,-500.0,8.767e-05,2]
[356322136,1742261437547,-1185.27,8.767e-05,2]
[356322137,1742261437556,-500.0,8.767e-05,2]
[356322138,1742261437565,-1483.23,8.767e-05,2]
[356322139,1742261437575,-275.62,8.767e-05,2]
[356322140,1742261437584,-8269.53,8.767e-05,2]
[356322141,1742261437593,-1058.5,8.767e-05,2]
[356322142,1742261437602,-500.0,8.767e-05,2]
[356322143,1742261437612,-1012.34,8.767e-05,2]
[356322144,1742261437621,-1509.2,8.767e-05,2]
[356322145,1742261437631,-7294.58,8.767e-05,2]
[356322146,1742261437640,-500.0,8.767e-05,2]
[356322147,1742261437653,-519.54,8.767e-05,2]
[356322148,1742261437662,-500.0,8.767e-05,2]
[356322149,1742261437672,-500.0,8.767e-05,2]
[356322150,1742261437680,-903.71,8.767e-05,2]
[356322151,1742261437691,-500.0,8.767e-05,2]
[356322152,1742261437700,-8449.46,8.767e-05,2]
[356322153,1742261437709,-1281.15,8.767e-05,2]
[356322154,1742261437718,-500.0,8.767e-05,2]
[356322155,1742261437730,-854.47,8.767e-05,2]
[356322156,1742261437740,-986.83,8.767e-05,2]
[356322157,1742261437749,-732.3,8.767e-05,2]
[356322158,1742261437758,-288.08,8.767e-05,2]
[356322159,1742261437768,-848.18,8.767e-05,2]
[356322160,1742261437776,-1032.93,8.767e-05,2]
[356322161,1742261437786,-564.65,8.767e-05,2]
[356322162,1742261437795,-500.0,8.767e-05,2]
[356322163,1742261437805,-6439.17,8.767e-05,2]
[356322164,1742261437814,-1711.67,8.767e-05,2]
[356322165,1742261437824,-562.71,8.767e-05,2]
[356322166,1742261437833,-2200.66,8.767e-05,2]
[356322167,1742261437843,-385.13634842,8.767e-05,2]
[356322168,1742261437852,-3934.32,8.767e-05,2]
[356322169,1742261437862,-2184.32,8.767e-05,2]
[356322170,1742261437871,-500.0,8.767e-05,2]
[356322171,1742261437881,-714.68,8.767e-05,2]
[356322172,1742261437890,-4317.17,8.767e-05,2]
[356322173,1742261437899,-1815.06,8.767e-05,2]
[356322174,1742261437908,-500.0,8.767e-05,2]
[356322175,1742261437918,-935.1,8.767e-05,2]
[356322176,1742261437927,-755.46,8.767e-05,2]
[356322177,1742261437936,-1174.66,8.767e-05,2]
[356322178,1742261437945,-556.58,8.767e-05,2]